fUSD/lending_fUSD_20260510
["ID","MTS","AMOUNT","RATE_DAILY","PERIOD"]
[421979393,1778400727000,-361.66,0.00026593,2]
[421979392,1778400727000,-361.66,0.00026593,30]
[421979403,1778400727000,-230.2,0.00026642,30]
[421979405,1778400727000,-230.2,0.00026642,7]
[421979400,1778400727000,-230.2,0.00026642,30]
[421979398,1778400727000,-230.2,0.00026642,2]
[421979402,1778400727000,-230.2,0.00026642,7]
[421979397,1778400727000,-230.2,0.00026642,30]
[421979407,1778400727000,-230.2,0.00026642,2]
[421979401,1778400727000,-230.2,0.00026642,2]
[421979409,1778400727000,-230.2,0.00026642,30]
[421979389,1778400727000,-361.66,0.00026593,30]
[421979394,1778400727000,-361.73,0.00026593,7]
[421979399,1778400727000,-230.2,0.00026642,7]
[421979461,1778400728000,-29853.68,0.000289,7]
[421979465,1778400728000,-200.0,0.00029592,2]
[421979464,1778400728000,-567.83691056,0.00029452,30]
[421979466,1778400728000,-200.0,0.00029592,2]
[421979460,1778400728000,-500.0,0.00028899,2]
[421979463,1778400728000,-191.0,0.00029256,120]
[421979477,1778400728000,-200.0,0.00029882,2]
[421979471,1778400728000,-200.0,0.00029592,2]
[421979470,1778400728000,-200.0,0.00029592,2]
[421979478,1778400728000,-200.0,0.00029882,2]
[421979473,1778400728000,-150.0,0.00029601,2]
[421979480,1778400728000,-200.0,0.00029882,2]
[421979472,1778400728000,-249.0,0.00029592,2]
[421979474,1778400728000,-2000.0,0.0002983,2]
[421979476,1778400728000,-200.0,0.00029882,2]
[421979475,1778400728000,-200.0,0.00029882,2]
[421979482,1778400728000,-200.0,0.00029882,2]
[421979481,1778400728000,-200.0,0.00029882,2]
[421979492,1778400728000,-5000.0,0.0003003,2]
[421979462,1778400728000,-2748.16046941,0.00029226,2]
[421979479,1778400728000,-200.0,0.00029882,2]
[421979469,1778400728000,-200.0,0.00029592,2]
[421979448,1778400728000,-1002.45777208,0.00027921,5]
[421979467,1778400728000,-200.0,0.00029592,2]
[421979491,1778400728000,-2609.4457739,0.0003003,2]
[421979443,1778400728000,-500.0,0.000278,7]
[421979442,1778400728000,-828.0,0.00027545,10]
[421979439,1778400728000,-806.83757011,0.00027463,2]
[421979440,1778400728000,-438.0,0.00027545,10]
[421979441,1778400728000,-614.0,0.00027545,10]
[421979444,1778400728000,-191.0,0.00027863,120]
[421979445,1778400728000,-6465.5703391,0.00027871,2]
[421979455,1778400728000,-151.0,0.00028267,2]
[421979454,1778400728000,-150.0,0.00028192,2]
[421979451,1778400728000,-1005.30995184,0.00027921,5]
[421979446,1778400728000,-2609.4457739,0.00027871,2]
[421979447,1778400728000,-1004.4140847,0.00027921,5]
[421979457,1778400728000,-500.0,0.00028899,30]
[421979450,1778400728000,-167.549538,0.00027921,5]
[421979449,1778400728000,-1004.69083246,0.00027921,5]
[421979452,1778400728000,-208.59147841,0.00027921,5]
[421979453,1778400728000,-856.21169676,0.00028,60]
[421979456,1778400728000,-2500.0,0.00028284,2]
[421979468,1778400728000,-200.0,0.00029592,2]
[421979459,1778400728000,-500.0,0.00028899,2]
[421979458,1778400728000,-500.0,0.00028899,120]
[421979484,1778400728000,-5596.61614433,0.0003,120]
[421979490,1778400728000,-6465.5703391,0.0003003,2]
[421979486,1778400728000,-274.0,0.0003,120]
[421979513,1778400728000,-152.0,0.00030302,7]
[421979515,1778400728000,-174.0,0.00030714,7]
[421979517,1778400728000,-291.0,0.00030804,30]
[421979519,1778400728000,-632.0,0.00030804,30]
[421979516,1778400728000,-191.0,0.00030719,120]
[421979521,1778400728000,-150.0,0.00031081,2]
[421979520,1778400728000,-208.10422263,0.00031,120]
[421979518,1778400728000,-254.0,0.00030804,30]
[421979522,1778400728000,-278.04,0.00031096,2]
[421979523,1778400728000,-29853.68,0.000312,7]
[421979525,1778400728000,-353.3156509,0.000312,2]
[421979528,1778400728000,-1000.0,0.000315,7]
[421979531,1778400728000,-455.83,0.00031517,2]
[421979530,1778400728000,-455.83,0.00031517,2]
[421979524,1778400728000,-353.31565093,0.000312,2]
[421979527,1778400728000,-154.0,0.00031212,2]
[421979529,1778400728000,-455.83,0.00031517,2]
[421979532,1778400728000,-498.78,0.00031517,2]
[421979533,1778400728000,-434.84,0.00031517,2]
[421979534,1778400728000,-498.78,0.00031779,2]
[421979483,1778400728000,-298.0,0.00029882,2]
[421979514,1778400728000,-152.0,0.00030341,7]
[421979510,1778400728000,-452.96126666,0.00030137,2]
[421979526,1778400728000,-353.3156509,0.000312,2]
[421979512,1778400728000,-151.0,0.00030239,2]
[421979487,1778400728000,-391.69,0.0003,7]
[421979511,1778400728000,-152.0,0.00030181,7]
[421979488,1778400728000,-150.0,0.0003,120]
[421979485,1778400728000,-200.0,0.0003,120]
[421979489,1778400728000,-262.0,0.0003,120]
[421979493,1778400728000,-10267.6442,0.0003003,2]
[421979500,1778400728000,-440.65503045,0.00030129,120]
[421979494,1778400728000,-29853.68,0.000301,7]
[421979498,1778400728000,-500.0,0.00030129,30]
[421979503,1778400728000,-500.0,0.00030129,2]
[421979497,1778400728000,-500.0,0.00030129,30]
[421979495,1778400728000,-198.0,0.000301,120]
[421979504,1778400728000,-500.0,0.00030129,2]
[421979501,1778400728000,-500.0,0.00030129,2]
[421979496,1778400728000,-500.0,0.00030129,30]
[421979505,1778400728000,-500.0,0.00030129,2]
[421979502,1778400728000,-500.0,0.00030129,2]
[421979507,1778400728000,-801392.03377711,0.0003013,7]
[421979506,1778400728000,-500.0,0.00030129,2]
[421979499,1778400728000,-500.0,0.00030129,120]
[421979509,1778400728000,-200.0,0.00030137,2]
[421979508,1778400728000,-5306.1862266,0.00030135,120]
[421979563,1778400729000,-150.0,0.00032636,2]
[421979586,1778400729000,-700.0,0.00033847,2]
[421979572,1778400729000,-434.85007138,0.00033093,2]
[421979578,1778400729000,-151.1890218,0.000336,120]
[421979577,1778400729000,-29853.68,0.000336,7]
[421979568,1778400729000,-2478.28617003,0.00033,3]
[421979570,1778400729000,-1238.42814177,0.00033,120]
[421979574,1778400729000,-151.0,0.000333,5]
[421979565,1778400729000,-254.0,0.00032804,30]
[421979571,1778400729000,-498.78,0.00033093,2]
[421979575,1778400729000,-308.053,0.000334,120]
[421979567,1778400729000,-498.78,0.0003283,2]
[421979585,1778400729000,-700.0,0.00033847,2]
[421979576,1778400729000,-441.26,0.00033458,2]
[421979569,1778400729000,-1167.73,0.00033,120]
[421979582,1778400729000,-700.0,0.00033847,2]
[421979579,1778400729000,-254.0,0.00033804,30]
[421979581,1778400729000,-700.0,0.00033847,2]
[421979580,1778400729000,-632.0,0.00033804,30]
[421979584,1778400729000,-700.0,0.00033847,2]
[421979590,1778400729000,-245.0,0.00033847,2]
[421979589,1778400729000,-700.0,0.00033847,2]
[421979583,1778400729000,-700.0,0.00033847,2]
[421979587,1778400729000,-700.0,0.00033847,2]
[421979562,1778400729000,-218.36,0.000326,14]
[421979573,1778400729000,-151.0,0.000333,7]
[421979561,1778400729000,-498.78,0.00032567,2]
[421979539,1778400729000,-434.84,0.00031832,2]
[421979566,1778400729000,-632.0,0.00032804,30]
[421979544,1778400729000,-1238.42814177,0.00032,120]
[421979535,1778400729000,-254.0,0.00031804,30]
[421979537,1778400729000,-249.0,0.00031807,2]
[421979536,1778400729000,-632.0,0.00031804,30]
[421979538,1778400729000,-247.0,0.00031807,2]
[421979543,1778400729000,-1167.73,0.00032,120]
[421979542,1778400729000,-4690.73404423,0.00032,3]
[421979540,1778400729000,-441.26,0.00031865,2]
[421979541,1778400729000,-164.19,0.000319,7]
[421979545,1778400729000,-158.0,0.00032,120]
[421979550,1778400729000,-150.0,0.00032251,2]
[421979551,1778400729000,-150.0,0.00032251,2]
[421979555,1778400729000,-1015.13,0.0003238,7]
[421979546,1778400729000,-498.78,0.00032042,2]
[421979552,1778400729000,-150.0,0.00032251,2]
[421979547,1778400729000,-391.69,0.000321,7]
[421979554,1778400729000,-498.78,0.00032305,2]
[421979553,1778400729000,-185.0,0.00032251,2]
[421979549,1778400729000,-151.0,0.0003221,5]
[421979548,1778400729000,-434.84,0.00032147,2]
[421979560,1778400729000,-29853.68,0.000325,7]
[421979559,1778400729000,-500.0,0.00032499,2]
[421979557,1778400729000,-500.0,0.00032499,30]
[421979558,1778400729000,-500.0,0.00032499,2]
[421979564,1778400729000,-434.84,0.00032778,2]
[421979556,1778400729000,-434.84,0.00032462,2]
[421979588,1778400729000,-700.0,0.00033847,2]
[421979603,1778400729000,-632.0,0.00034804,30]
[421979600,1778400729000,-304.68,0.000346,20]
[421979624,1778400729000,-500.0,0.00035616,7]
[421979625,1778400729000,-500.0,0.00035616,7]
[421979634,1778400729000,-1238.42814177,0.00036,120]
[421979632,1778400729000,-150.0,0.00035981,2]
[421979627,1778400729000,-221.23151664,0.00035616,2]
[421979636,1778400729000,-188.93,0.00036328,14]
[421979631,1778400729000,-29853.68,0.000359,7]
[421979630,1778400729000,-632.0,0.00035804,30]
[421979629,1778400729000,-254.0,0.00035804,30]
[421979628,1778400729000,-10000.0,0.000358,2]
[421979635,1778400729000,-151.0,0.00036153,30]
[421979633,1778400729000,-1167.73,0.00036,120]
[421979639,1778400729000,-1146.02256466,0.00036633,2]
[421979640,1778400729000,-412.66119403,0.00036633,2]
[421979638,1778400729000,-188.93,0.00036328,14]
[421979641,1778400729000,-863.58946345,0.00036633,2]
[421979642,1778400729000,-310.58625824,0.00036633,2]
[421979643,1778400729000,-463.38560569,0.00036633,2]
[421979645,1778400729000,-451.46014752,0.00036633,2]
[421979644,1778400729000,-768.76558994,0.00036633,2]
[421979637,1778400729000,-188.93,0.00036328,14]
[421979646,1778400729000,-483.59861358,0.00036633,2]
[421979647,1778400729000,-309.51866284,0.00036633,2]
[421979648,1778400729000,-590.67564567,0.00036633,2]
[421979592,1778400729000,-1238.42814177,0.000339,120]
[421979622,1778400729000,-500.0,0.00035616,7]
[421979615,1778400729000,-500.0,0.00035367,3]
[421979626,1778400729000,-634.00872898,0.00035616,7]
[421979620,1778400729000,-160.02509443,0.00035367,3]
[421979617,1778400729000,-500.0,0.00035367,3]
[421979596,1778400729000,-150.0,0.00034267,2]
[421979601,1778400729000,-1500.0,0.00034795,2]
[421979595,1778400729000,-151.0,0.00034182,7]
[421979602,1778400729000,-254.0,0.00034804,30]
[421979597,1778400729000,-391.69,0.000343,7]
[421979593,1778400729000,-6000.0,0.00034,2]
[421979594,1778400729000,-874.17,0.00034119,37]
[421979599,1778400729000,-160.63,0.00034521,120]
[421979598,1778400729000,-304.68,0.000344,120]
[421979607,1778400729000,-154.12012522,0.00034999,120]
[421979613,1778400729000,-1500.0,0.000352,7]
[421979604,1778400729000,-29853.68,0.000349,7]
[421979591,1778400729000,-1167.73,0.000339,120]
[421979614,1778400729000,-500.0,0.00035367,3]
[421979605,1778400729000,-500.0,0.00034999,30]
[421979619,1778400729000,-500.0,0.00035367,3]
[421979621,1778400729000,-151.56,0.00035616,60]
[421979618,1778400729000,-500.0,0.00035367,3]
[421979616,1778400729000,-500.0,0.00035367,3]
[421979623,1778400729000,-500.0,0.00035616,7]
[421979612,1778400729000,-1238.42814177,0.00035,120]
[421979610,1778400729000,-250.0,0.00035,7]
[421979611,1778400729000,-1167.73,0.00035,120]
[421979606,1778400729000,-500.0,0.00034999,2]
[421979609,1778400729000,-200000.0,0.00035,2]
[421979608,1778400729000,-500.0,0.00034999,2]
[421979684,1778400730000,-300.26547527,0.00036633,2]
[421979688,1778400730000,-1146.02256466,0.00036633,2]
[421979685,1778400730000,-1794.48916065,0.00036633,2]
[421979686,1778400730000,-343.63244301,0.00036633,2]
[421979687,1778400730000,-526.36126599,0.00036633,2]
[421979680,1778400730000,-533.03905517,0.00036633,2]
[421979679,1778400730000,-892.50225283,0.00036633,2]
[421979682,1778400730000,-402.24687058,0.00036633,2]
[421979681,1778400730000,-725.34798474,0.00036633,2]
[421979676,1778400730000,-300.0,0.00036633,2]
[421979695,1778400730000,-300.0,0.00036633,2]
[421979677,1778400730000,-527.2192813,0.00036633,2]
[421979692,1778400730000,-463.38560569,0.00036633,2]
[421979698,1778400730000,-300.0,0.00036633,2]
[421979690,1778400730000,-863.58946345,0.00036633,2]
[421979689,1778400730000,-309.2779459,0.00036633,2]
[421979694,1778400730000,-451.46014752,0.00036633,2]
[421979693,1778400730000,-576.5741924,0.00036633,2]
[421979696,1778400730000,-483.59861358,0.00036633,2]
[421979697,1778400730000,-309.51866284,0.00036633,2]
[421979699,1778400730000,-1093.63973599,0.00036633,2]
[421979703,1778400730000,-527.2192813,0.00036633,2]
[421979702,1778400730000,-356.40924907,0.00036633,2]
[421979705,1778400730000,-892.50225283,0.00036633,2]
[421979706,1778400730000,-399.47373702,0.00036633,2]
[421979704,1778400730000,-1065.85133357,0.00036633,2]
[421979691,1778400730000,-310.58625824,0.00036633,2]
[421979672,1778400730000,-1093.63973599,0.00036633,2]
[421979649,1778400730000,-1093.63973599,0.00036633,2]
[421979674,1778400730000,-492.19455268,0.00036633,2]
[421979707,1778400730000,-725.34798474,0.00036633,2]
[421979651,1778400730000,-805.82678692,0.00036633,2]
[421979659,1778400730000,-1794.48916065,0.00036633,2]
[421979650,1778400730000,-492.19455268,0.00036633,2]
[421979652,1778400730000,-527.2192813,0.00036633,2]
[421979657,1778400730000,-521.10879165,0.00036633,2]
[421979655,1778400730000,-533.03905517,0.00036633,2]
[421979653,1778400730000,-1065.85133357,0.00036633,2]
[421979654,1778400730000,-1189.96149077,0.00036633,2]
[421979658,1778400730000,-369.81331436,0.00036633,2]
[421979656,1778400730000,-968.20872896,0.00036633,2]
[421979660,1778400730000,-343.63244301,0.00036633,2]
[421979678,1778400730000,-1065.85133357,0.00036633,2]
[421979662,1778400730000,-309.2779459,0.00036633,2]
[421979671,1778400730000,-300.0,0.00036633,2]
[421979670,1778400730000,-309.51866284,0.00036633,2]
[421979664,1778400730000,-310.58625824,0.00036633,2]
[421979668,1778400730000,-300.0,0.00036633,2]
[421979666,1778400730000,-576.5741924,0.00036633,2]
[421979661,1778400730000,-1146.02256466,0.00036633,2]
[421979665,1778400730000,-463.38560569,0.00036633,2]
[421979667,1778400730000,-451.46014752,0.00036633,2]
[421979669,1778400730000,-483.59861358,0.00036633,2]
[421979673,1778400730000,-301.24498047,0.00036633,2]
[421979683,1778400730000,-521.10879165,0.00036633,2]
[421979675,1778400730000,-805.82678692,0.00036633,2]
[421979663,1778400730000,-1152.73933227,0.00036633,2]
[421979700,1778400730000,-492.19455268,0.00036633,2]
[421979701,1778400730000,-603.85506578,0.00036633,2]
[421979711,1778400730000,-853.32651933,0.00036633,2]
[421979738,1778400730000,-300.49096736,0.00036633,2]
[421979737,1778400730000,-378.89120836,0.00036633,2]
[421979739,1778400730000,-853.32651933,0.00036633,2]
[421979741,1778400730000,-1146.02256466,0.00036633,2]
[421979745,1778400730000,-463.38560569,0.00036633,2]
[421979747,1778400730000,-451.46014752,0.00036633,2]
[421979746,1778400730000,-576.59432604,0.00036633,2]
[421979756,1778400730000,-893.41554295,0.00036633,2]
[421979748,1778400730000,-483.59861358,0.00036633,2]
[421979752,1778400730000,-656.73130099,0.00036633,2]
[421979749,1778400730000,-309.51866284,0.00036633,2]
[421979755,1778400730000,-356.51388634,0.00036633,2]
[421979750,1778400730000,-300.0,0.00036633,2]
[421979751,1778400730000,-1093.63973599,0.00036633,2]
[421979754,1778400730000,-703.50040512,0.00036633,2]
[421979753,1778400730000,-603.85506578,0.00036633,2]
[421979757,1778400730000,-725.21322443,0.00036633,2]
[421979760,1778400730000,-383.12806343,0.00036633,2]
[421979762,1778400730000,-414.42989407,0.00036633,2]
[421979767,1778400730000,-1093.63973599,0.00036633,2]
[421979761,1778400730000,-863.42343581,0.00036633,2]
[421979759,1778400730000,-924.9259484,0.00036633,2]
[421979763,1778400730000,-577.20504639,0.00036633,2]
[421979758,1778400730000,-301.4896953,0.00036633,2]
[421979766,1778400730000,-412.92453588,0.00036633,2]
[421979764,1778400730000,-451.46014752,0.00036633,2]
[421979708,1778400730000,-301.4896953,0.00036633,2]
[421979740,1778400730000,-791.44520498,0.00036633,2]
[421979743,1778400730000,-863.58946345,0.00036633,2]
[421979765,1778400730000,-645.15452051,0.00036633,2]
[421979742,1778400730000,-309.24162099,0.00036633,2]
[421979718,1778400730000,-310.58625824,0.00036633,2]
[421979719,1778400730000,-463.38560569,0.00036633,2]
[421979715,1778400730000,-1146.02256466,0.00036633,2]
[421979713,1778400730000,-343.88982392,0.00036633,2]
[421979720,1778400730000,-576.59432604,0.00036633,2]
[421979714,1778400730000,-526.71229049,0.00036633,2]
[421979710,1778400730000,-300.26547527,0.00036633,2]
[421979744,1778400730000,-310.58625824,0.00036633,2]
[421979716,1778400730000,-309.2779459,0.00036633,2]
[421979709,1778400730000,-300.0,0.00036633,2]
[421979717,1778400730000,-863.58946345,0.00036633,2]
[421979730,1778400730000,-603.85506578,0.00036633,2]
[421979732,1778400730000,-1065.85133357,0.00036633,2]
[421979712,1778400730000,-1794.48916065,0.00036633,2]
[421979721,1778400730000,-451.46014752,0.00036633,2]
[421979726,1778400730000,-300.94728086,0.00036633,2]
[421979736,1778400730000,-301.4896953,0.00036633,2]
[421979733,1778400730000,-892.50225283,0.00036633,2]
[421979734,1778400730000,-665.33123017,0.00036633,2]
[421979725,1778400730000,-300.0,0.00036633,2]
[421979728,1778400730000,-300.32534007,0.00036633,2]
[421979735,1778400730000,-725.34798474,0.00036633,2]
[421979727,1778400730000,-1093.63973599,0.00036633,2]
[421979723,1778400730000,-483.59861358,0.00036633,2]
[421979731,1778400730000,-527.2192813,0.00036633,2]
[421979729,1778400730000,-492.19455268,0.00036633,2]
[421979722,1778400730000,-306.37486008,0.00036633,2]
[421979724,1778400730000,-309.51866284,0.00036633,2]
[421979811,1778400731000,-1087.66,0.00037862,7]
[421979810,1778400731000,-150.0,0.0003778,2]
[421979812,1778400731000,-464.94357299,0.00037884,2]
[421979814,1778400731000,-932.28,0.00037902,7]
[421979805,1778400731000,-1087.66,0.00037477,7]
[421979794,1778400731000,-150.0,0.0003743,30]
[421979804,1778400731000,-150.0,0.00037443,60]
[421979802,1778400731000,-150.0,0.0003743,7]
[421979798,1778400731000,-266.69127012,0.0003743,7]
[421979803,1778400731000,-150.0,0.0003743,7]
[421979801,1778400731000,-150.0,0.0003743,7]
[421979807,1778400731000,-1087.66,0.0003767,7]
[421979826,1778400731000,-151.0,0.00038125,30]
[421979808,1778400731000,-1444.0,0.00037753,120]
[421979816,1778400731000,-250.0,0.00038,7]
[421979815,1778400731000,-154.47137477,0.00037917,2]
[421979813,1778400731000,-178.48191205,0.000379,120]
[421979817,1778400731000,-29853.68,0.00038,7]
[421979806,1778400731000,-154.47137477,0.00037643,2]
[421979818,1778400731000,-6411.0,0.00038,5]
[421979828,1778400731000,-154.47137477,0.00038191,2]
[421979819,1778400731000,-501.51,0.00038,120]
[421979821,1778400731000,-500.0,0.00038006,43]
[421979820,1778400731000,-220.0,0.00038,2]
[421979827,1778400731000,-932.28,0.00038131,7]
[421979793,1778400731000,-154.47137477,0.00037369,2]
[421979809,1778400731000,-150.0,0.00037777,7]
[421979797,1778400731000,-150.0,0.0003743,7]
[421979783,1778400731000,-150.40022105,0.00036999,2]
[421979796,1778400731000,-150.0,0.0003743,7]
[421979823,1778400731000,-1087.66,0.00038054,7]
[421979769,1778400731000,-301.45711905,0.00036633,2]
[421979779,1778400731000,-254.0,0.00036804,30]
[421979772,1778400731000,-366.27669469,0.00036633,2]
[421979768,1778400731000,-401.79473831,0.00036633,2]
[421979773,1778400731000,-400.35110019,0.00036633,2]
[421979774,1778400731000,-755.35637207,0.00036633,2]
[421979770,1778400731000,-359.89739169,0.00036633,2]
[421979771,1778400731000,-602.38393434,0.00036633,2]
[421979778,1778400731000,-391.69,0.000368,7]
[421979776,1778400731000,-304.68,0.000367,10]
[421979777,1778400731000,-170.28,0.00036775,10]
[421979775,1778400731000,-343.62395792,0.00036633,2]
[421979780,1778400731000,-632.0,0.00036804,30]
[421979785,1778400731000,-250.0,0.00037,7]
[421979782,1778400731000,-500.0,0.00036999,2]
[421979790,1778400731000,-1238.42814177,0.000371,120]
[421979787,1778400731000,-1087.66,0.00037093,7]
[421979784,1778400731000,-100000.000001,0.00037,2]
[421979789,1778400731000,-1167.73,0.000371,120]
[421979786,1778400731000,-437.4,0.00037003,2]
[421979788,1778400731000,-154.47137477,0.00037095,2]
[421979781,1778400731000,-500.0,0.00036999,30]
[421979792,1778400731000,-1087.66,0.00037285,7]
[421979791,1778400731000,-233.57547849,0.00037284,2]
[421979795,1778400731000,-150.0,0.0003743,7]
[421979799,1778400731000,-173.4120625,0.0003743,7]
[421979800,1778400731000,-150.0,0.0003743,7]
[421979822,1778400731000,-932.28,0.00038017,7]
[421979835,1778400731000,-1523.5,0.00038329,120]
[421979825,1778400731000,-150.0,0.00038123,7]
[421979866,1778400731000,-151.79,0.00038869,120]
[421979858,1778400731000,-154.47137477,0.00038739,2]
[421979856,1778400731000,-500.0,0.00038712,120]
[421979857,1778400731000,-732.0,0.00038712,120]
[421979862,1778400731000,-151.0,0.00038813,14]
[421979865,1778400731000,-4606.3059125,0.00038834,2]
[421979860,1778400731000,-5433.6287,0.00038762,2]
[421979861,1778400731000,-4929.0954,0.00038762,2]
[421979869,1778400731000,-2000.0,0.000389,7]
[421979876,1778400731000,-204.94692995,0.00039,5]
[421979874,1778400731000,-250.0,0.00039,7]
[421979867,1778400731000,-5433.6287,0.00038899,2]
[421979855,1778400731000,-222.07225183,0.00038673,2]
[421979870,1778400731000,-151.79,0.00038969,120]
[421979872,1778400731000,-231.65784525,0.00038999,2]
[421979877,1778400731000,-160.2804077,0.00039,7]
[421979871,1778400731000,-500.0,0.00038999,30]
[421979875,1778400731000,-538.88088799,0.00039,2]
[421979873,1778400731000,-31268.32473394,0.00039,2]
[421979886,1778400731000,-151.79,0.00039169,120]
[421979882,1778400731000,-4929.0954,0.00039036,2]
[421979885,1778400731000,-150.0,0.00039163,7]
[421979878,1778400731000,-360.0,0.00039,2]
[421979883,1778400731000,-151.79,0.00039069,120]
[421979881,1778400731000,-5433.6287,0.00039036,2]
[421979880,1778400731000,-154.47137477,0.00039013,2]
[421979868,1778400731000,-4929.0954,0.00038899,2]
[421979854,1778400731000,-4929.0954,0.00038625,2]
[421979879,1778400731000,-1266.45078513,0.00039,120]
[421979864,1778400731000,-150.0,0.00038816,7]
[421979863,1778400731000,-150.0,0.00038816,7]
[421979840,1778400731000,-250.0,0.00038359,5]
[421979841,1778400731000,-350.0,0.00038362,5]
[421979829,1778400731000,-1167.73,0.000382,120]
[421979832,1778400731000,-1087.66,0.00038246,7]
[421979830,1778400731000,-1238.42814177,0.000382,120]
[421979837,1778400731000,-5433.6287,0.00038351,2]
[421979884,1778400731000,-501.14462935,0.00039146,49]
[421979833,1778400731000,-932.28,0.00038246,7]
[421979838,1778400731000,-4929.0954,0.00038351,2]
[421979831,1778400731000,-2748.16046941,0.00038227,2]
[421979834,1778400731000,-1523.5,0.00038329,120]
[421979836,1778400731000,-1023.88252728,0.00038329,120]
[421979824,1778400731000,-257.83413924,0.000381,33]
[421979846,1778400731000,-1087.66,0.00038438,7]
[421979839,1778400731000,-150.0,0.00038356,5]
[421979849,1778400731000,-150.0,0.0003847,7]
[421979851,1778400731000,-4929.0954,0.00038488,2]
[421979848,1778400731000,-150.0,0.0003847,7]
[421979847,1778400731000,-154.47137477,0.00038465,2]
[421979850,1778400731000,-5433.6287,0.00038488,2]
[421979844,1778400731000,-650.0,0.0003837,5]
[421979845,1778400731000,-699.51398227,0.00038373,5]
[421979853,1778400731000,-5433.6287,0.00038625,2]
[421979843,1778400731000,-550.0,0.00038367,5]
[421979842,1778400731000,-450.0,0.00038364,5]
[421979852,1778400731000,-1180.11,0.00038556,7]
[421979859,1778400731000,-261.10927142,0.00038759,14]
[421979924,1778400732000,-2982.280879,0.00039794,7]
[421979917,1778400732000,-150.0,0.00039669,2]
[421979915,1778400732000,-2000.68,0.00039589,120]
[421979913,1778400732000,-5433.6287,0.00039584,2]
[421979919,1778400732000,-2804.9908,0.00039674,30]
[421979916,1778400732000,-2000.0,0.00039589,120]
[421979918,1778400732000,-151.79,0.00039669,120]
[421979922,1778400732000,-4929.0954,0.00039721,2]
[421979920,1778400732000,-173.26631691,0.0003969,30]
[421979921,1778400732000,-5433.6287,0.00039721,2]
[421979927,1778400732000,-154.47137477,0.00039835,2]
[421979923,1778400732000,-151.79,0.00039769,120]
[421979934,1778400732000,-666.0,0.00039879,30]
[421979925,1778400732000,-1504.678911,0.00039794,7]
[421979914,1778400732000,-4929.0954,0.00039584,2]
[421979929,1778400732000,-5433.6287,0.00039858,2]
[421979928,1778400732000,-150.0,0.00039856,7]
[421979931,1778400732000,-151.79,0.00039869,120]
[421979933,1778400732000,-300.0,0.00039879,10]
[421979930,1778400732000,-4929.0954,0.00039858,2]
[421979932,1778400732000,-300.0,0.00039879,10]
[421979926,1778400732000,-1344.62855072,0.000398,14]
[421979905,1778400732000,-151.79,0.00039469,120]
[421979906,1778400732000,-529.97347637,0.000395,30]
[421979907,1778400732000,-529.97347636,0.000395,30]
[421979935,1778400732000,-157.76376754,0.0003989,2]
[421979887,1778400732000,-5433.6287,0.00039173,2]
[421979888,1778400732000,-4929.0954,0.00039173,2]
[421979890,1778400732000,-500.0,0.0003926,120]
[421979900,1778400732000,-151.79,0.00039369,120]
[421979889,1778400732000,-908.624,0.00039239,30]
[421979898,1778400732000,-5433.6287,0.0003931,2]
[421979899,1778400732000,-4929.0954,0.0003931,2]
[421979897,1778400732000,-304.68,0.000393,60]
[421979892,1778400732000,-500.0,0.0003926,120]
[421979912,1778400732000,-151.79,0.00039569,120]
[421979891,1778400732000,-500.0,0.0003926,120]
[421979896,1778400732000,-154.47137477,0.00039287,2]